bitfinex/quotes_SOLUSD_20251007
["timestamp","ask_amount","ask_price","bid_price","bid_amount"]
[1759827169759,3.40899351,229.94,229.93,30.5]
[1759827170060,0.69,229.94,229.93,30.5]
[1759827172456,4.34796656,230.0,229.93,30.5]
[1759827172764,0.69,229.96,229.93,30.5]
[1759827173060,0.69,229.95,229.93,30.5]
[1759827173236,2.71899351,229.98,229.93,30.5]
[1759827173438,3.40899351,229.97,229.93,30.5]
[1759827173645,0.69,229.96,229.93,30.5]
[1759827173842,2.71899351,229.96,229.93,30.5]
[1759827174048,0.69,229.95,229.93,30.5]
[1759827174242,0.69,229.94,229.93,30.5]
[1759827175764,7.7579541,229.94,229.93,30.5]
[1759827176066,29.5068308,229.94,229.86,33.9]
[1759827176370,2.71899351,229.91,229.87,30.56]
[1759827176868,0.69,229.9,229.87,30.56]
[1759827177053,2.71899351,229.91,229.87,30.56]
[1759827177054,0.69,229.89,229.87,30.56]
[1759827177453,3.63470109,230.11,229.87,30.56]
[1759827177454,0.69,229.97,229.88,0.72]
[1759827177661,0.69,229.97,229.89,4.34990647]
[1759827177843,0.69,229.97,229.9,31.3]
[1759827178040,0.69,229.99,229.91,0.72]
[1759827178884,0.69,230.01,229.91,0.72]
[1759827179251,2.71899351,230.0,229.9,30.58]
[1759827179444,2.71899351,229.97,229.9,30.58]
[1759827179652,0.69,229.96,229.9,30.58]
[1759827179870,5.03877147,229.95,229.9,30.58]
[1759827180073,4.34877147,229.95,229.9,30.58]
[1759827180251,7.06752322,229.97,229.9,34.92965563]
[1759827180449,7.75752322,229.97,229.9,30.58]
[1759827180752,3.40899351,229.96,229.9,30.58]
[1759827180942,0.69,229.96,229.9,30.58]
[1759827181149,0.69,229.96,229.9,34.92964481]
[1759827182357,5.03859125,229.96,229.9,34.92964481]
[1759827182561,5.03859125,229.96,229.9,30.58]
[1759827182953,7.06758476,229.96,229.9,30.58]
[1759827183271,2.71899351,229.94,229.9,30.58]
[1759827183459,3.38899351,229.93,229.9,30.58]
[1759827183660,0.67,229.92,229.9,30.58]
[1759827183970,0.67,229.91,229.9,30.58]
[1759827184575,3.38899351,229.94,229.9,30.58]
[1759827184743,0.67,229.94,229.9,30.58]
[1759827185160,0.67,229.98,229.91,0.72]
[1759827185371,2.71899351,229.97,229.91,0.72]
[1759827185784,2.71899351,229.95,229.9,30.58]
[1759827185955,0.67,229.94,229.9,30.58]
[1759827186465,10.87647521,230.02,229.9,30.58]
[1759827186665,0.67,229.98,229.91,0.72]
[1759827186857,3.38899351,229.98,229.91,0.72]
[1759827187361,4.3473762,230.03,229.91,0.72]
[1759827187556,3.38899351,230.02,229.93,20.8]
[1759827187749,0.67,230.01,229.94,30.6]
[1759827187949,0.1,230.07,229.95,0.72]
[1759827188281,3.48899351,230.07,229.97,20.8]
[1759827188576,2.71899351,230.06,229.98,31.34]
[1759827188873,7.06572215,230.06,229.99,5.06801513]
[1759827189054,0.1,230.07,230.0,0.72]
[1759827190287,0.1,230.07,230.02,20.8]
[1759827190450,0.1,230.07,230.06,20.8]
[1759827190649,0.1,230.07,230.06,31.67647521]
[1759827190849,0.1,230.07,230.06,25.86669216]
[1759827192061,0.1,230.07,230.06,21.52]
[1759827192257,0.1,230.07,230.03,0.72]
[1759827192577,0.1,230.07,230.06,30.68]
[1759827193079,4.44650323,230.07,230.06,30.68]
[1759827193278,4.44650323,230.07,230.0,0.72]
[1759827193586,10.61999153,230.07,230.01,30.7]
[1759827194277,4.44650323,230.07,230.01,30.7]
[1759827194583,0.1,230.07,230.02,0.72]
[1759827194762,0.1,230.07,230.04,20.8]
[1759827194962,0.1,230.07,230.05,35.76680977]
[1759827195358,0.1,230.07,230.06,0.72]
[1759827197756,0.1,230.07,230.06,25.86669216]
[1759827197952,0.1,230.07,230.06,15.94316737]
[1759827198148,1e-08,230.07,230.06,15.94316737]
[1759827198756,1e-08,230.08,230.07,20.8]
[1759827198982,1e-08,230.08,230.07,21.52]
[1759827199781,1e-08,230.08,230.07,36.74297844]
[1759827199970,1e-08,230.1,230.08,10.87647521]
[1759827200158,1e-08,230.1,230.09,41.61647521]
[1759827200477,0.1,230.16,230.13,10.87647521]
[1759827200663,1e-08,230.14,230.13,62.41647521]
[1759827200853,1e-08,230.16,230.13,63.13647521]
[1759827201176,1e-08,230.16,230.14,0.72]
[1759827201477,1e-08,230.16,230.15,10.87647521]
[1759827201984,1e-08,230.16,230.15,36.7414676]
[1759827202175,1e-08,230.17,230.16,31.67647521]
[1759827202378,1e-08,230.17,230.16,63.19647521]
[1759827203475,1e-08,230.17,230.16,32.39647521]
[1759827203664,1e-08,230.17,230.16,63.21647521]
[1759827204858,1e-08,230.17,230.16,52.34]
[1759827206567,1e-08,230.17,230.16,31.54]
[1759827206765,1e-08,230.17,230.16,52.34]
[1759827207985,1e-08,230.17,230.16,62.49647521]
[1759827208418,1e-08,230.17,230.16,63.21647521]
[1759827209089,1e-08,230.17,230.16,25.86480361]
[1759827209384,1e-08,230.17,230.16,56.64480361]
[1759827210470,1e-08,230.17,230.16,67.52127882]
[1759827210782,1e-08,230.17,230.16,46.72127882]
[1759827214185,1e-08,230.17,230.16,46.00127882]
[1759827214386,1e-08,230.17,230.16,36.70127882]
[1759827214588,1e-08,230.17,230.16,66.78127882]
[1759827215676,1e-08,230.17,230.16,67.46127882]
[1759827217566,1e-08,230.17,230.16,46.66127882]
[1759827222473,1e-08,230.17,230.16,124.66127882]
[1759827222689,0.1,230.23,230.2,31.67647521]
[1759827222891,0.1,230.23,230.21,30.74]
[1759827223084,0.1,230.23,230.21,31.41]
[1759827223289,0.70539992,230.29,230.24,20.8]
[1759827223491,0.1,230.31,230.25,35.08296047]
[1759827224201,4.44199455,230.31,230.25,35.08296047]
[1759827224512,4.44199455,230.31,230.25,30.74]
[1759827224720,4.44199455,230.31,230.26,30.74]
[1759827224887,4.44199455,230.31,230.27,30.74]
[1759827225304,0.72,230.3,230.27,30.74]
[1759827225479,5.06253258,230.29,230.18,4.3444261]
[1759827225674,0.72,230.28,230.22,20.8]
[1759827225982,0.72,230.28,230.23,30.74]
[1759827226480,0.72,230.27,230.23,30.74]
[1759827226677,0.72,230.26,230.23,30.74]
[1759827226997,0.72,230.25,230.23,30.74]
[1759827228082,0.72,230.3,230.23,35.08344856]
[1759827228596,0.72,230.29,230.23,35.08344856]
[1759827229396,0.72,230.28,230.23,30.74]
[1759827229599,0.72,230.27,230.23,30.74]
[1759827229789,0.72,230.26,230.23,30.74]
[1759827229983,0.72,230.25,230.23,30.74]
[1759827230191,0.72,230.24,230.23,30.74]
[1759827230784,15.19822831,230.29,230.23,35.08347495]
[1759827230785,0.72,230.29,230.23,35.08347495]
[1759827231184,0.72,230.28,230.23,30.74]
[1759827231383,0.72,230.27,230.23,30.74]
[1759827231619,19.41962265,230.3,230.23,35.08348107]
[1759827231916,0.72,230.26,230.23,35.08348107]
[1759827232489,0.72,230.3,230.23,30.74]
[1759827233089,0.72,230.3,230.23,35.08341637]
[1759827233482,0.1,230.31,230.23,45.94212288]
[1759827233990,0.1,230.31,230.23,35.08341637]
[1759827234611,0.82,230.31,230.23,35.08341637]
[1759827235302,5.16198808,230.31,230.23,35.08341637]
[1759827235501,0.72,230.3,230.23,35.08341637]
[1759827235702,0.72,230.3,230.23,30.74]
[1759827235913,0.72,230.29,230.23,30.74]
[1759827236095,0.72,230.28,230.23,30.74]
[1759827236283,0.1,230.31,230.23,35.08345232]
[1759827236485,4.44202332,230.31,230.24,0.67]
[1759827236681,0.1,230.31,230.24,0.67]
[1759827237312,0.1,230.31,230.25,4.34310532]
[1759827237498,0.1,230.31,230.26,30.72]
[1759827237909,0.82,230.31,230.26,30.72]
[1759827238112,0.82,230.31,230.29,20.8]
[1759827238113,0.1,230.31,230.29,20.8]
[1759827238315,0.1,230.31,230.3,30.74]
[1759827239389,0.1,230.31,230.3,35.08216239]
[1759827239898,0.1,230.31,230.3,46.6286376]
[1759827240200,0.1,230.31,230.3,35.77216239]
[1759827240402,0.1,230.31,230.3,30.76]
[1759827241009,0.82,230.31,230.3,30.76]
[1759827241210,6.89927829,230.31,230.3,30.76]
[1759827241793,5.16197386,230.31,230.3,30.76]
[1759827242194,0.82,230.31,230.3,30.76]
[1759827242404,5.16197386,230.31,230.3,30.76]
[1759827242608,0.1,230.31,230.3,30.76]
[1759827243393,0.1,230.31,230.3,35.78216239]
[1759827244132,0.1,230.31,230.3,30.76]
[1759827247606,0.1,230.31,230.3,35.10216239]
[1759827248409,0.1,230.31,230.3,30.76]
[1759827249923,0.76,230.31,230.3,30.76]
[1759827250834,5.10197386,230.31,230.3,30.76]
[1759827251140,0.1,230.31,230.3,30.76]
[1759827252124,0.1,230.31,230.3,35.78216239]
[1759827256536,0.1,230.31,230.3,35.10216239]
[1759827257123,0.1,230.31,230.3,35.78216239]
[1759827258014,0.1,230.31,230.3,35.10216239]
[1759827258221,0.1,230.31,230.3,46.6586376]
[1759827260840,0.1,230.31,230.3,59.48974689]
[1759827267415,0.1,230.31,230.3,25.14216239]
[1759827267627,0.1,230.31,230.3,55.86216239]
[1759827268844,0.76,230.31,230.3,30.72]
[1759827269151,0.1,230.31,230.3,35.06216239]
[1759827269316,0.1,230.31,230.29,4.34235094]
[1759827269521,0.1,230.31,230.3,30.7]
[1759827270254,0.1,230.31,230.3,20.8]
[1759827270453,0.1,230.31,230.3,51.5]
[1759827271539,0.1,230.31,230.3,55.82216239]
[1759827274753,0.1,230.31,230.3,56.53216239]
[1759827274953,0.1,230.31,230.3,55.82216239]
[1759827275248,0.1,230.31,230.3,51.48]
[1759827275819,0.76,230.31,230.3,30.68]
[1759827276858,0.76,230.31,230.24,13.67604169]
[1759827276859,0.76,230.31,230.22,10.85883811]
[1759827277028,0.66,230.3,230.23,30.66]
[1759827277359,0.66,230.29,230.23,51.46]
[1759827277658,0.68,230.28,230.2,4.34404865]
[1759827277852,0.68,230.27,230.22,4.34367127]
[1759827278042,10.95493465,230.31,230.23,30.68]
[1759827278043,0.68,230.26,230.23,30.68]
[1759827278547,0.1,230.31,230.24,0.71]
[1759827278760,0.1,230.31,230.25,51.5]
[1759827280028,0.1,230.31,230.26,4.3429167]
[1759827280228,0.1,230.31,230.27,30.7]
[1759827280531,0.78,230.31,230.27,30.7]
[1759827281649,0.68,230.3,230.27,30.7]
[1759827282045,0.1,230.31,230.27,35.04267256]
[1759827282354,0.78,230.31,230.27,35.04267256]
[1759827282741,0.68,230.3,230.27,35.04267256]
[1759827283354,0.1,230.31,230.27,35.04267256]
[1759827283757,0.78,230.31,230.27,35.04267256]
[1759827283936,0.68,230.3,230.28,30.68]
[1759827284551,0.1,230.31,230.28,30.68]
[1759827284758,0.78,230.31,230.28,30.68]
[1759827285358,0.1,230.31,230.28,35.02248691]
[1759827285529,0.1,230.31,230.29,0.71]
[1759827285731,0.1,230.31,230.3,30.66]
[1759827286959,0.78,230.31,230.3,30.66]
[1759827287141,5.12197386,230.31,230.3,30.66]
[1759827287340,7.83591199,230.31,230.3,30.66]
[1759827287653,3.49393813,230.31,230.3,30.66]
[1759827287833,0.78,230.31,230.3,30.66]
[1759827288535,5.12197386,230.31,230.3,30.66]
[1759827288948,0.1,230.31,230.3,30.66]
[1759827293042,5.12197386,230.31,230.3,30.66]
[1759827293868,7.83591199,230.31,230.3,30.66]
[1759827295471,18.69084664,230.31,230.21,21.51]
[1759827295768,2.71393813,230.27,230.22,30.66]
[1759827296072,3.39393813,230.27,230.22,30.66]
[1759827296566,2.71393813,230.26,230.22,30.66]
[1759827296862,0.68,230.25,230.22,30.66]
[1759827297083,7.05742073,230.23,230.22,30.66]
[1759827297255,5.0234826,230.23,230.22,30.66]
[1759827298040,2.71393813,230.25,230.22,30.66]
[1759827298240,3.39393813,230.26,230.22,30.66]
[1759827298444,3.39393813,230.25,230.22,30.66]
[1759827298656,0.68,230.25,230.22,30.66]
[1759827298967,3.39393813,230.25,230.22,30.66]
[1759827299161,7.7371934,230.25,230.22,30.66]
[1759827300870,3.39393813,230.24,230.22,30.66]
[1759827301063,2.71393813,230.24,230.22,30.66]
[1759827301358,7.05738575,230.24,230.22,30.66]
[1759827301847,5.02292499,230.26,230.22,30.66]
[1759827302047,2.71393813,230.27,230.23,0.71]
[1759827302970,5.03235094,230.29,230.22,30.66]
[1759827302971,2.71393813,230.24,230.22,30.66]
[1759827303151,2.71393813,230.23,230.22,30.66]
[1759827303550,7.05742073,230.23,230.22,30.66]
[1759827303771,7.74742073,230.23,230.22,30.66]
[1759827304075,7.05742073,230.23,230.22,30.66]
[1759827304250,4.3434826,230.23,230.22,30.66]
[1759827304451,7.05742073,230.23,230.22,30.66]
[1759827305175,4.3434826,230.23,230.22,30.66]
[1759827305477,7.05742073,230.23,230.22,30.66]
[1759827305769,7.05723702,230.24,230.22,30.66]
[1759827306676,3.40393813,230.23,230.22,30.66]
[1759827306881,2.71393813,230.23,230.22,30.66]
[1759827307957,7.05742073,230.23,230.22,30.66]
[1759827309549,18.60612724,230.23,230.17,33.84]
[1759827309756,18.60612724,230.23,230.18,30.6]
[1759827309757,2.71393813,230.19,230.18,30.6]
[1759827310387,3.40393813,230.19,230.18,30.6]
[1759827311378,20.8,230.22,230.18,30.6]
[1759827311562,2.71393813,230.19,230.18,30.6]
[1759827312753,3.40393813,230.19,230.18,30.6]
[1759827313157,24.20393813,230.19,230.18,30.6]
[1759827313568,28.54817549,230.19,230.18,30.6]
[1759827313776,50.28524412,230.19,230.13,0.71]
[1759827313964,2.71393813,230.16,230.14,30.6]
[1759827314764,2.71393813,230.15,230.14,31.31]
[1759827314977,2.71393813,230.15,230.14,30.6]
[1759827315976,2.71393813,230.16,230.14,31.31]
[1759827316581,2.71393813,230.16,230.14,30.6]
[1759827316767,2.71393813,230.15,230.14,30.6]
[1759827317476,3.40393813,230.15,230.14,30.6]
[1759827317671,7.74893052,230.15,230.14,30.6]
[1759827318388,7.05893052,230.15,230.14,30.6]
[1759827318763,7.05893052,230.15,230.1,0.71]
[1759827318764,7.05893052,230.15,230.11,30.58]
[1759827318969,2.71393813,230.13,230.11,31.29]
[1759827319166,4.34472055,230.17,230.12,0.71]
[1759827319392,7.05865868,230.17,230.12,0.71]
[1759827319564,4.34472055,230.17,230.12,0.71]
[1759827319881,2.71393813,230.17,230.12,0.71]
[1759827321180,2.71393813,230.17,230.13,0.71]
[1759827321382,2.71393813,230.17,230.14,0.71]
[1759827321586,2.71393813,230.15,230.11,30.58]
[1759827321893,4.34518119,230.14,230.12,0.71]
[1759827322099,4.34518119,230.14,230.11,30.58]
[1759827322266,2.71393813,230.13,230.12,30.58]
[1759827323883,7.05930813,230.13,230.12,30.58]
[1759827324060,2.71393813,230.13,230.12,30.58]
[1759827324259,4.34520264,230.14,230.12,31.29]
[1759827324463,4.34520264,230.14,230.12,30.58]
[1759827324675,4.34520264,230.14,230.12,31.29]
[1759827324895,2.71393813,230.13,230.12,30.58]
[1759827325261,7.05914077,230.14,230.12,30.58]
[1759827326096,2.71393813,230.14,230.12,30.58]
[1759827327082,4.34537,230.13,230.12,30.58]
[1759827327275,7.05930813,230.13,230.12,30.58]
[1759827327675,4.34515446,230.15,230.12,30.58]
[1759827327976,2.71393813,230.14,230.12,31.29]
[1759827328182,7.05909259,230.15,230.12,31.29]
[1759827328508,2.71393813,230.16,230.13,0.71]
[1759827328675,2.71393813,230.16,230.14,0.71]
[1759827329888,7.05893052,230.15,230.12,31.29]
[1759827330096,2.71393813,230.14,230.12,30.58]
[1759827330580,2.71393813,230.14,230.12,31.29]
[1759827331496,2.71393813,230.14,230.12,30.58]
[1759827331993,4.34537,230.13,230.12,30.58]
[1759827332193,7.05930813,230.13,230.12,30.58]
[1759827332576,7.05930813,230.13,230.12,31.28]
[1759827332577,4.34537,230.13,230.12,31.28]
[1759827332906,4.34537,230.13,230.12,30.58]
[1759827333784,7.05930813,230.13,230.12,30.58]
[1759827334496,4.34537,230.13,230.12,30.58]
[1759827336878,4.34537,230.13,230.12,31.28]
[1759827337495,2.71393813,230.15,230.12,31.28]
[1759827338589,4.34480361,230.16,230.13,0.7]
[1759827338799,7.0590597,230.15,230.12,30.58]
[1759827338999,7.0590597,230.15,230.12,31.28]
[1759827340593,2.71393813,230.17,230.13,0.7]
[1759827341182,1.739498,230.17,230.13,0.7]
[1759827342015,6.0839241,230.18,230.13,0.7]
[1759827343214,6.0839241,230.18,230.12,34.92547649]
[1759827343521,6.0839241,230.18,230.14,0.67]
[1759827344105,1.739498,230.17,230.14,0.67]
[1759827344299,1.739498,230.17,230.12,34.92547649]
[1759827344500,1.739498,230.17,230.15,0.67]
[1759827345086,6.08411428,230.17,230.15,0.67]
[1759827346910,6.08411428,230.17,230.13,0.67]
[1759827346911,4.34461628,230.17,230.13,0.67]
[1759827347113,6.08411428,230.17,230.14,0.67]
[1759827347288,1.739498,230.17,230.14,0.67]
[1759827349919,6.08430087,230.17,230.14,0.67]
[1759827351217,6.08430087,230.17,230.15,0.67]
[1759827351516,6.08430087,230.17,230.16,30.58]
[1759827353624,20.8,230.22,230.16,31.25]
[1759827353924,1.739498,230.25,230.17,0.67]
[1759827354219,16.95888991,230.26,230.17,0.67]
[1759827355099,1.739498,230.25,230.18,4.3444261]
[1759827355319,1.739498,230.25,230.19,0.67]
[1759827355697,1.739498,230.24,230.19,0.67]
[1759827355907,2.449498,230.24,230.19,0.67]
[1759827356231,2.449498,230.24,230.2,0.67]
[1759827356410,2.449498,230.24,230.21,30.56]
[1759827357116,6.79294078,230.24,230.21,30.56]
[1759827359115,6.08294078,230.24,230.21,30.56]
[1759827361630,4.34310532,230.25,230.21,30.56]
[1759827361831,1.739498,230.23,230.21,30.56]
[1759827362034,4.34310532,230.25,230.21,30.56]
[1759827362035,1.739498,230.22,230.21,30.56]
[1759827362238,2.409498,230.22,230.21,30.56]
[1759827363636,6.75316927,230.22,230.21,30.56]
[1759827363936,17.62964448,230.22,230.21,30.56]
[1759827364117,10.87647521,230.21,230.17,30.56]
[1759827364302,1.739498,230.18,230.17,30.56]
[1759827364702,2.409498,230.18,230.17,30.56]
[1759827364923,1.739498,230.18,230.17,30.56]
[1759827365831,4.34404865,230.2,230.17,31.26]
[1759827366124,1.739498,230.18,230.17,31.26]
[1759827366331,4.34404865,230.2,230.17,31.26]
[1759827366506,1.739498,230.19,230.17,30.56]
[1759827366697,4.34404865,230.2,230.17,31.26]
[1759827366903,1.739498,230.19,230.17,31.26]
[1759827367629,6.08384233,230.19,230.17,31.26]
[1759827368734,0.67,230.22,230.17,30.56]
[1759827368915,15.21995781,230.23,230.18,0.7]
[1759827369226,12.61597321,230.23,230.18,0.7]
[1759827369431,1.739498,230.22,230.19,0.7]
[1759827370128,10.87647521,230.23,230.19,0.7]
[1759827370330,1.739498,230.25,230.2,0.7]
[1759827370637,0.67,230.28,230.21,30.56]
[1759827370808,1.739498,230.25,230.22,0.7]
[1759827371007,15.21920331,230.27,230.23,0.7]
[1759827371332,1.739498,230.25,230.23,0.7]
[1759827373426,1.739498,230.26,230.23,0.7]
[1759827373609,1.739498,230.26,230.24,0.7]
[1759827373807,4.3427281,230.27,230.24,0.7]
[1759827374103,6.0822261,230.27,230.24,0.7]
[1759827375439,6.0822261,230.27,230.25,0.7]
[1759827376218,4.3427281,230.27,230.21,34.90385461]
[1759827376528,6.0822261,230.27,230.23,0.7]
[1759827376828,1.739498,230.25,230.21,30.56]
[1759827377134,15.19954835,230.27,230.22,0.7]
[1759827377311,1.739498,230.25,230.21,30.56]
[1759827377516,1.739498,230.26,230.22,0.7]
[1759827377716,4.34310532,230.25,230.23,0.7]
[1759827378548,1.739498,230.26,230.21,30.56]
[1759827378549,1.739498,230.26,230.24,0.7]
[1759827378710,6.08240238,230.27,230.21,34.90383377]
[1759827378906,6.08240238,230.27,230.22,0.7]
[1759827380336,1.739498,230.25,230.22,0.7]
[1759827381434,15.1988883,230.28,230.23,0.7]
[1759827381734,1.739498,230.26,230.24,0.7]
[1759827382035,1.739498,230.27,230.25,30.56]
[1759827382231,1.739498,230.26,230.25,30.56]
[1759827383815,6.0824147,230.26,230.25,30.56]
[1759827384838,6.0824147,230.26,230.25,31.64172]
[1759827386052,4.3427281,230.27,230.25,31.64172]
[1759827386254,1.739498,230.26,230.25,31.64172]
[1759827386742,2.409498,230.26,230.25,31.64172]
[1759827386950,1.739498,230.26,230.25,31.64172]
[1759827388118,6.7524147,230.26,230.25,31.64172]
[1759827388720,17.62888991,230.26,230.25,1.08172]
[1759827390750,10.87647521,230.25,230.21,21.36]
[1759827390937,1.739498,230.22,230.17,31.24]
[1759827391132,1.739498,230.19,230.18,0.7]
[1759827391837,4.3444261,230.18,230.17,30.54]
[1759827392042,6.0839241,230.18,230.17,31.21]
[1759827392238,6.08365163,230.2,230.17,31.21]
[1759827392427,6.08365163,230.2,230.18,0.67]
[1759827394235,6.08365163,230.2,230.17,30.54]
[1759827394545,6.08365163,230.2,230.18,0.67]
[1759827394745,6.08365163,230.2,230.19,0.67]
[1759827396146,6.08365163,230.2,230.17,30.54]
[1759827396350,6.08365163,230.2,230.18,0.67]
[1759827398355,6.08365163,230.2,230.19,0.69]
[1759827399037,6.08365163,230.2,230.17,31.23]
[1759827399236,6.08365163,230.2,230.18,0.69]
[1759827400856,1.739498,230.19,230.17,30.54]
[1759827401153,15.90427526,230.2,230.06,10.86635962]
[1759827401154,2.439498,230.18,230.13,30.54]
[1759827401331,12.59902711,230.26,230.14,31.23]
[1759827401531,10.87647521,230.25,230.15,31.23]
[1759827401750,1.739498,230.22,230.16,0.69]
[1759827401953,1.739498,230.23,230.16,0.69]
[1759827403146,17.93673307,230.23,230.16,0.69]
[1759827403582,28.79543958,230.23,230.16,0.69]
[1759827403739,2.71677526,230.19,230.15,30.54]
[1759827403943,26.07866432,230.23,230.15,30.54]
[1759827404157,3.41677526,230.18,230.15,30.54]
[1759827404457,2.71677526,230.18,230.15,30.54]
[1759827404643,2.71677526,230.17,230.15,30.54]
[1759827405264,4.34480361,230.16,230.15,30.54]
[1759827406543,7.06157887,230.16,230.15,30.54]
[1759827407447,4.34480361,230.16,230.15,31.23]
[1759827408955,4.34480361,230.16,230.15,30.54]
[1759827411666,7.06157887,230.16,230.15,30.54]
[1759827411844,4.34480361,230.16,230.15,30.54]
[1759827412174,4.34480361,230.16,230.15,31.23]
[1759827414172,2.71677526,230.18,230.15,31.23]
[1759827415270,4.34461484,230.17,230.15,31.23]
[1759827415687,2.71677526,230.16,230.15,30.54]
[1759827415962,5.04461484,230.17,230.15,30.54]
[1759827416166,7.0613901,230.17,230.15,30.54]
[1759827416366,2.71677526,230.16,230.15,30.54]
[1759827416563,3.41677526,230.16,230.15,30.54]
[1759827416757,0.7,230.16,230.15,30.54]
[1759827416960,2.71677526,230.16,230.15,30.54]
[1759827417269,18.63805408,230.16,230.15,30.54]
[1759827417652,17.93805408,230.16,230.15,30.54]
[1759827418849,20.8,230.2,230.15,31.23]
[1759827419050,10.87647521,230.19,230.16,0.69]
[1759827419251,10.87647521,230.19,230.17,0.69]
[1759827419865,4.34385995,230.21,230.15,30.54]
[1759827420065,4.34423736,230.19,230.16,0.69]
[1759827420262,4.34423736,230.19,230.17,0.69]
[1759827420462,4.34423736,230.19,230.15,31.23]
[1759827420674,4.34423736,230.19,230.16,0.69]
[1759827421189,13.57642514,230.21,230.16,0.69]
[1759827421190,15.20417028,230.2,230.16,0.69]
[1759827421363,10.87647521,230.17,230.15,30.54]
[1759827421558,14.25325047,230.17,230.15,30.54]
[1759827422575,4.34480361,230.16,230.15,30.54]
[1759827425884,10.86001814,230.21,230.15,31.2]
[1759827426089,2.71677526,230.2,230.15,31.2]
[1759827426282,14.25325047,230.21,230.15,31.2]
[1759827427201,14.25325047,230.21,230.15,30.54]
[1759827427380,13.59325047,230.21,230.16,0.66]
[1759827427570,13.59325047,230.21,230.17,0.66]
[1759827427992,4.34404865,230.2,230.17,0.66]
[1759827428195,4.34404865,230.2,230.15,31.2]
[1759827428398,15.20417028,230.2,230.16,0.66]
[1759827428996,4.34404865,230.2,230.16,0.66]
[1759827429194,4.34404865,230.2,230.17,0.66]
[1759827429363,4.34404865,230.2,230.15,30.54]
[1759827429562,4.34404865,230.2,230.16,0.66]
[1759827430391,4.34404865,230.2,230.17,0.66]
[1759827430598,4.34404865,230.2,230.15,31.2]
[1759827430768,4.34404865,230.2,230.16,0.66]
[1759827431477,15.20417028,230.2,230.16,0.66]
[1759827431677,2.71677526,230.18,230.15,30.54]
[1759827431877,0.66,230.17,230.15,30.54]
[1759827432696,4.34480361,230.16,230.15,30.54]
[1759827432868,7.72157887,230.16,230.11,30.54]
[1759827433381,18.5835879,230.16,230.12,0.66]
[1759827433898,17.9235879,230.16,230.12,0.66]
[1759827434195,18.5835879,230.16,230.12,0.66]
[1759827435594,17.9235879,230.16,230.11,30.54]
[1759827435776,18.5835879,230.16,230.11,31.2]
[1759827436365,15.20681264,230.16,230.11,30.54]
[1759827436570,15.20681264,230.16,230.12,0.66]
[1759827436786,15.20681264,230.16,230.13,0.66]
[1759827437366,10.86200903,230.16,230.13,0.66]
[1759827438580,10.86200903,230.16,230.14,0.66]
[1759827438781,10.86200903,230.16,230.15,0.66]
[1759827440382,10.86200903,230.16,230.12,0.66]
[1759827440583,10.86200903,230.16,230.13,0.66]
[1759827442578,10.86200903,230.16,230.14,0.66]
[1759827443504,10.86200903,230.16,230.11,30.54]
[1759827443705,10.86200903,230.16,230.12,0.66]
[1759827444090,4.34461484,230.17,230.13,0.66]